[Event "93rd German Championship 2022"]
[Site "Magdeburg"]
[Date "2022.08.16"]
[Round "4.13"]
[White "Malek, Daniel"]
[Black "Pahl, Erik"]
[Result "1/2-1/2"]
[ECO "C65"]
[WhiteElo "2365"]
[BlackElo "2203"]
[Annotator "TA"]
[PlyCount "151"]
[EventDate "2022.08.14"]
[EventType "swiss"]
[EventCountry "GER"]
[SourceTitle "playchess.com"]
[Source "ChessBase"]
[SourceQuality "1"]
[TimeControl "40/5400+30:1800+30"]

{[%evp 12,150,4,-3,32,5,39,22,41,23,17,0,11,9,20,12,27,16,12,17,13,0,0,-27,18,0,0,0,0,0,3,0,25,0,0,0,0,0,0,0,0,0,29,0,0,0,0,0,0,0,0,-27,-11,-43,123,127,119,128,125,132,137,122,122,128,110,10,10,10,10,10,10,10,10,10,10,10,10,10,10,9,9,9,10,0,135,18,18,18,18,18,18,18,25,25,108,108,108,108,108,108,108,27,108,108,108,108,108,108,108,108,108,108,108,108,108,108,108,0,0,0,0,0,0,0,0,0,0,0,0,0,0,0,0,0,0,0,0,0,0,0,0]} 1. e4 {[%emt 0:00:04]} e5 {[%emt 0:00:23]} 2. Nf3 {[%emt 0:00:07]} Nc6 {[%emt 0:00:05]} 3. Bb5 {[%emt 0:00:07]} Nf6 {[%emt 0:00:35]} 4. d3 {[%emt 0:00:24]} Bc5 {[%emt 0:00:29]} 5. c3 {[%emt 0:00:42]} d6 {[%emt 0:00:42]} 6. O-O {[%emt 0:00:44]} O-O {[%emt 0:00:33]} 7. Bg5 {[%emt 0:07:56]} Bb6 {[%emt 0:03:07] C65: Ruy Lopez: Berlin Defence (3...Nf6), unusual lines and 4 0-0 Bc5.} (7... h6 $5 {[%cal Rh6g5]} 8. Be3 Bxe3 9. fxe3 Bd7 $11) 8. a4 {[%emt 0:02:05] [#]} a5 $146 {[%emt 0:02:41]} ({Predecessor:} 8... a6 9. Bxc6 bxc6 10. a5 Ba7 11. Nbd2 Rb8 12. Nc4 Be6 13. Qe2 Qd7 14. Bxf6 gxf6 15. Ne3 {½-½ (79) Kazakov,M (2496)-Ovsejevitsch,S (2529) Ordzhonikidze 2001}) 9. Nbd2 {[%emt 0:01:15]} Ne7 {[%emt 0:00:53]} 10. d4 {[%emt 0:11:45]} Ng6 {[%emt 0:03:25]} 11. h3 {[%emt 0:03:37]} c6 {[%emt 0:02:19]} 12. Bd3 {[%emt 0:00:22]} h6 {[%emt 0:01:23]} 13. Be3 {[%emt 0:00:54]} Nh5 {[%emt 0:01:28]} 14. Re1 {[%emt 0:00:38]} Nhf4 {[%emt 0:02:45]} 15. Bf1 {[%emt 0:00:08]} exd4 {[%emt 0:05:42]} 16. Bxd4 {[%emt 0:07:23]} Bc7 {[%emt 0:01:46]} 17. Nc4 {[%emt 0:02:51]} Ne6 {[%emt 0:03:46]} 18. Be3 {[%emt 0:02:22]} f5 {[%emt 0:06:08]} 19. exf5 {[%emt 0:06:26]} Rxf5 {[%emt 0:00:07]} 20. g3 {[%emt 0:05:01]} (20. Ra3 {looks sharper.} d5 21. Bd3 Nef4 22. Bxf4 Nxf4 23. Bxf5 Bxf5 24. Ne3) 20... d5 {[%emt 0:07:58]} 21. Ncd2 {[%emt 0:00:57]} Rf6 {[%emt 0:07:13]} 22. Nb3 {[%emt 0:02:06]} Qf8 {[%emt 0:01:20]} 23. Bg2 {[%emt 0:00:55]} Ne7 {[%emt 0:03:32]} 24. Nfd4 {[%emt 0:01:31]} Ng5 {[%emt 0:01:20]} 25. Bxg5 {[%emt 0:01:58]} hxg5 {[%emt 0:00:05]} 26. Qd2 {[%emt 0:00:21]} g4 {[%emt 0:01:19]} 27. h4 {[%emt 0:05:36]} (27. Qe2 $5 {[%cal Re2e7]} gxh3 28. Qxe7 hxg2 29. Qxf8+ (29. Qxc7 Rxf2 30. g4 Rxb2 $11) 29... Rxf8 30. Kxg2 $11) 27... Ng6 {[%emt 0:07:12]} 28. Re2 {[%emt 0:01:25]} Bd7 $1 {[%emt 0:00:39][%cal Og6h4]} 29. Rae1 {[%emt 0:00:20][%cal Ba1e1,Be1e6,Be6g6][%mdl 32]} Qd6 {[%emt 0:00:32][%cal Og6h4]} 30. Qg5 $36 {[%emt 0:01:23][%mdl 2048] Black is under pressure.} Raf8 {[%emt 0:01:50]} 31. Nc1 {[%emt 0:04:14] Active counter play!} (31. Nb5 $5 cxb5 32. Bxd5+ R8f7 33. Bxf7+ Rxf7 34. Nd4 $11) 31... Bd8 {[%emt 0:03:21][%cal Of6f2] White must now prevent ...Rxf2!} 32. Qd2 {[%emt 0:01:09] [#]} Rf3 $2 {[%emt 0:02:21]} 33. Re6 $16 {[%emt 0:05:13]} (33. Nxf3 $2 gxf3 34. Bxf3 Rxf3 $19) 33... Bxe6 {[%emt 0:01:23]} 34. Rxe6 {[%emt 0:00:11] Dancing on a razor blade.} Qd7 {[%emt 0:00:17]} 35. Bxf3 {[%emt 0:01:15]} ({Much less strong is} 35. Rxg6 Rxf2 36. Qe1 (36. Qxf2 $2 Rxf2 37. Nce2 Qf7 $19) 36... Bb6 $14) 35... gxf3 {[%emt 0:03:14]} 36. Rxg6 {[%emt 0:00:41]} Qh3 {[%emt 0:00:59][%csl Gf3][%cal Rh3g2] [#]} 37. Nxf3 $1 {[%emt 0:00:09]} Rxf3 {[%emt 0:00:08]} 38. Nb3 {[%emt 0:16:42]} (38. Nd3 $16) 38... Qf5 $11 {[%emt 0:01:13]} 39. Nd4 {[%emt 0:02:50][%csl LRf3,LRf5]} ({Much weaker is} 39. Qh6 Qb1+ 40. Kg2 (40. Nc1 $2 Rf7 $19) 40... Rf7 $15) 39... Qb1+ {[%emt 0:00:11]} 40. Kg2 {[%emt 0:00:09] Rxg7+ is the strong threat.} Rxf2+ $1 {[%emt 0:00:09]} 41. Qxf2 {[%emt 0:30:13][%cal Og6g7]} Qxg6 {[%emt 0:30:10]} 42. Qf5 {[%emt 0:00:58]} Qxf5 {[%emt 0:01:15]} 43. Nxf5 {[%emt 0:00:06][%mdl 4096] Endgame KB-KN} b5 {[%emt 0:03:19]} 44. axb5 {[%emt 0:00:00]} cxb5 {[%emt 0:00:00]} 45. Nd4 {[%emt 0:00:00]} b4 {[%emt 0:00:00]} 46. cxb4 {[%emt 0:00:00]} Bf6 $1 {[%emt 0:00:00]} 47. Nc6 {[%emt 0:00:00]} ({But not} 47. bxa5 Bxd4 48. Kf3 Kf7 $17) 47... axb4 {[%emt 0:00:00]} (47... a4 $11 {keeps the balance.}) 48. Nxb4 {[%emt 0:00:00]} (48. b3 $1 $16) 48... Bxb2 {[%emt 0:00:00]} 49. Nxd5 {[%emt 0:00:00]} Kf7 {[%emt 0:00:00]} 50. Kf3 {[%emt 0:00:00]} Be5 {[%emt 0:00:00]} 51. g4 {[%emt 0:00:00]} Ke6 {[%emt 0:00:00]} 52. Ke4 {[%emt 0:00:00] And now Nf4+ would win.} Bb2 {[%emt 0:00:00] [#]} (52... Bg3 $11) 53. Nf4+ $1 $16 {[%emt 0:00:00]} Kf7 {[%emt 0:00:00] [#]} 54. Kf5 $1 {[%emt 0:00:00] Inhibits g6+.} Bc3 {[%emt 0:00:00]} 55. Ng6 {[%emt 0:00:00]} Bd4 {[%emt 0:00:00]} 56. Ne5+ {[%emt 0:00:00]} ({Better is} 56. g5 $16) 56... Kg8 {[%emt 0:00:00]} (56... Bxe5 $11 {remains equal.} 57. Kxe5 Kf8 58. Kf5 Kf7 59. h5 Kg8 60. Kg6 Kh8 61. h6 gxh6 62. Kxh6 Kg8) 57. Nf3 {[%emt 0:00:00]} Bb2 {[%emt 0:00:00]} 58. Kg6 {[%emt 0:00:00]} Bc3 {[%emt 0:00:00]} 59. Ng5 {[%emt 0:00:00]} Bb2 {[%emt 0:00:00]} 60. Ne4 {[%emt 0:00:00]} Bd4 {[%emt 0:00:00]} 61. Nd6 {[%emt 0:00:00]} Bc3 {[%emt 0:00:00]} 62. Kf5 {[%emt 0:00:00]} Be1 {[%emt 0:00:00]} 63. h5 {[%emt 0:00:00]} Bb4 {[%emt 0:00:00]} 64. Ke6 {[%emt 0:00:00]} (64. Nc4 $16) 64... Bxd6 $11 {[%emt 0:00:00] The position is equal.} 65. Kxd6 {[%emt 0:00:00] Intending Ke7 and mate. KPP-KP} g6 $1 {[%emt 0:00:00][%cal Bg7g6,Bg6g5][%mdl 32]} 66. h6 {[%emt 0:00:00] White wants to mate with Ke7.} g5 $1 {[%emt 0:00:00]} 67. Ke7 $1 {[%emt 0:00:00] Threatening mate with Kf6.} Kh7 {[%emt 0:00:00]} 68. Kf6 {[%emt 0:00:00]} Kxh6 {[%emt 0:00:00] KP-KP} 69. Kf5 {[%emt 0:00:00]} Kh7 {[%emt 0:00:00]} 70. Kxg5 {[%emt 0:00:00] KP-K} Kg7 {[%emt 0:00:00]} 71. Kf5 $1 {[%emt 0:00:00] White threatens Kg5 and mate.} Kf7 {[%emt 0:00:00]} 72. g5 {[%emt 0:00:00][%cal Bg4g5,Bg5g6,Bg6g7][%mdl 32]} Kg7 {[%emt 0:00:00]} 73. g6 {[%emt 0:00:00]} Kg8 {[%emt 0:00:00]} 74. Kf6 {[%emt 0:00:00]} (74. g7 $5 Kxg7 $11) 74... Kf8 {[%emt 0:00:00]} 75. g7+ {[%emt 0:00:00]} Kg8 {[%emt 0:00:00]} 76. Kg6 {Weighted Error Value: White=0.13 (very precise) /Black=0.16 (very precise)} 1/2-1/2

[Event "93rd German Championship 2022"]
[Site "Magdeburg"]
[Date "2022.08.16"]
[Round "4.14"]
[White "Dobrikov, Marco"]
[Black "Florstedt, Johannes"]
[Result "0-1"]
[ECO "B90"]
[WhiteElo "2223"]
[BlackElo "2359"]
[Annotator "TA"]
[PlyCount "80"]
[EventDate "2022.08.14"]
[EventType "swiss"]
[EventCountry "GER"]
[SourceTitle "playchess.com"]
[Source "ChessBase"]
[SourceQuality "1"]
[TimeControl "40/5400+30:1800+30"]

{[%evp 12,80,27,22,35,13,13,13,16,25,18,12,0,7,14,10,13,12,16,9,25,0,0,-197,-206,-176,-195,-192,-176,-291,-295,-306,-305,-320,-320,-388,-380,-407,-418,-423,-418,-424,-422,-422,-422,-571,-562,-590,-575,-593,-609,-763,-757,-747,-753,-744,-733,-772,-756,-877,-915,-1042,-512,-29990,-29991,-29991,-29992,-29992,-29993,-29998,-29999]} 1. e4 {[%emt 0:00:02]} c5 {[%emt 0:00:12]} 2. Nf3 {[%emt 0:00:02]} d6 {[%emt 0:00:05]} 3. d4 {[%emt 0:00:03]} cxd4 {[%emt 0:00:05]} 4. Nxd4 {[%emt 0:00:04]} Nf6 {[%emt 0:00:07]} 5. Nc3 {[%emt 0:00:02]} a6 {[%emt 0:00:16]} 6. h3 {[%emt 0:00:03]} e5 {[%emt 0:00:45]} 7. Nde2 {[%emt 0:00:08]} h5 {[%emt 0:00:07] B90: Sicilian Najdorf: Unusual White 6th moves, 6 Be3 Ng4 and 6 Be3 e5.} 8. Bg5 {[%emt 0:00:04]} Be6 {[%emt 0:00:35]} 9. Bxf6 {[%emt 0:00:34]} Qxf6 {[%emt 0:00:10] The position is equal.} 10. Nd5 {[%emt 0:00:06]} Qd8 {[%emt 0:00:08]} 11. Qd3 {[%emt 0:00:06]} Nd7 {[%emt 0:01:13]} 12. O-O-O {[%emt 0:00:12]} g6 {[%emt 0:00:11]} 13. Kb1 {[%emt 0:00:04]} Nc5 {[%emt 0:00:10]} 14. Qa3 {[%emt 0:00:18] now scores much better than the old 14.Qf3.} h4 {[%emt 0:00:30]} 15. Nec3 {[%emt 0:04:02]} Bg7 {[%emt 0:05:48] [#]} 16. Bc4 $146 {[%emt 0:18:31]} ({Predecessor:} 16. Ne3 O-O 17. b4 Nd7 18. Rxd6 Qc7 19. Rd2 Nb6 20. Ncd5 Bxd5 21. Rxd5 Nxd5 22. Nxd5 {0-1 (36) Duda,J (2750)-Paragua,M (2461) Chennai 2022}) 16... b5 {[%emt 0:09:47][%cal Bb7b5,Bb5b4][%mdl 32]} 17. Bb3 {[%emt 0:00:12] Black continues to play with concentration.} (17. b4 $11 {and White is okay.} Nb7 18. Bb3) 17... Rb8 $19 {[%emt 0:09:22]} 18. Nb4 {[%emt 0:04:33]} a5 {[%emt 0:05:15]} 19. Nc6 {[%emt 0:00:53] [#]} Qb6 {[%emt 0:00:57] Strongly threatening ...b4.} 20. Nxb8 {[%emt 0:02:35] [#]} (20. Bxe6 $142 b4 21. Nd5 (21. Qxa5 $2 bxc3 22. Qxb6 Rxb6 $17) 21... bxa3 22. Nxb6 Rxb6 23. Bd5) 20... b4 $1 {[%emt 0:00:17]} 21. Ba4+ {[%emt 0:13:17]} Kf8 {[%emt 0:00:51]} 22. Nd5 {[%emt 0:09:28]} Qxb8 {[%emt 0:10:14]} (22... bxa3 $2 23. Nxb6 Nxe4 24. Rhe1 $18) 23. Qe3 {[%emt 0:00:31]} Nxa4 {[%emt 0:00:28]} 24. Ka1 {[%emt 0:00:38]} Bh6 {[%emt 0:01:42] Inhibits Qg5.} 25. Qf3 {[%emt 0:00:32]} Bg5 {[%emt 0:00:52] Prevents Qf6.} 26. Qe2 {[%emt 0:02:04]} Nc5 {[%emt 0:02:14]} 27. Rhf1 {[%emt 0:03:31]} Kg7 {[%emt 0:09:58]} 28. f4 {[%emt 0:01:14]} Bxd5 {[%emt 0:00:14]} 29. fxg5 {[%emt 0:01:09]} Bxe4 {[%emt 0:00:10]} 30. Rf6 {[%emt 0:00:47]} d5 {[%emt 0:00:17]} 31. Rc6 {[%emt 0:20:21]} Rc8 {[%emt 0:03:14]} 32. Rxc8 {[%emt 0:00:33]} Qxc8 {[%emt 0:00:06]} 33. Qf2 {[%emt 0:05:45]} Nd7 {[%emt 0:00:59]} 34. Rc1 {[%emt 0:01:31]} a4 {[%emt 0:01:00][%cal Ba5a4,Ba4a3][%mdl 32]} 35. Qxh4 {[%emt 0:00:23]} a3 {[%emt 0:02:15]} 36. Qg3 {[%emt 0:00:02]} d4 {[%emt 0:00:27]} (36... Qc5 $142 {( -> ...Qd4)} 37. bxa3 bxa3) 37. c4 {[%emt 0:01:16]} (37. bxa3 $19 d3 38. Qe1 dxc2 39. Qxb4) 37... bxc3 {[%emt 0:00:39] Black mates.} 38. bxc3 {[%emt 0:00:05]} Qb7 {[%emt 0:00:15][%csl Ga3][%cal Rb7b2]} 39. Qf2 {[%emt 0:00:15]} dxc3 {[%emt 0:00:13]} 40. Rf1 {[%emt 0:02:23]} Qb2+ {[%emt 0:00:09] Weighted Error Value: White=0.57/Black=0.12 (very precise)} 0-1

[Event "93rd German Championship 2022"]
[Site "Magdeburg"]
[Date "2022.08.16"]
[Round "4.15"]
[White "Koehler, Christian Friedrich"]
[Black "Costa, Leonardo"]
[Result "0-1"]
[ECO "A16"]
[WhiteElo "2285"]
[BlackElo "2326"]
[Annotator "TA"]
[PlyCount "80"]
[EventDate "2022.08.14"]
[EventType "swiss"]
[EventCountry "GER"]
[SourceTitle "playchess.com"]
[Source "ChessBase"]
[SourceQuality "1"]
[TimeControl "40/5400+30:1800+30"]

{[%evp 20,80,59,59,79,82,79,81,80,61,76,61,83,78,80,82,87,85,87,90,74,83,82,63,101,47,46,43,47,40,38,29,69,52,195,206,233,112,157,148,152,144,220,208,340,333,674,696,700,519,481,0,0,-560,-545,-966,-948,-1200,-1019,-1956,-1739,-1714,-1574]} 1. c4 {[%emt 0:00:27]} Nf6 {[%emt 0:00:14]} 2. Nc3 {[%emt 0:00:07]} g6 {[%emt 0:01:56]} 3. e4 {[%emt 0:00:06]} d6 {[%emt 0:00:07]} 4. g3 {[%emt 0:00:07]} Bg7 {[%emt 0:00:06]} 5. Bg2 {[%emt 0:00:05]} O-O {[%emt 0:00:05]} 6. Nge2 {[%emt 0:00:05]} c5 {[%emt 0:00:17]} 7. O-O {[%emt 0:00:07]} Nc6 {[%emt 0:00:04]} 8. d3 {[%emt 0:00:05]} Ne8 {[%emt 0:00:08]} 9. Be3 {[%emt 0:00:27]} Nc7 {[%emt 0:00:39]} 10. d4 {[%emt 0:00:25]} cxd4 {[%emt 0:03:19]} 11. Nxd4 {[%emt 0:00:09]} Ne5 {[%emt 0:11:20] A36: Symmetrical English vs ...g6: 4 Bg2 Bg7.} 12. b3 {[%emt 0:02:59]} Ng4 {[%emt 0:03:18]} 13. Bc1 {[%emt 0:04:00]} Ne6 {[%emt 0:01:20] White is better.} 14. Nde2 {[%emt 0:13:28]} a6 {[%emt 0:16:25][%cal Ob7b5]} 15. h3 {[%emt 0:05:32]} Nf6 {[%emt 0:00:17]} 16. Be3 {[%emt 0:00:43] [#]} Rb8 $146 {[%emt 0:00:31]} ({Predecessor:} 16... Bd7 17. e5 dxe5 18. Bxb7 Nd4 19. Bg2 Qc8 20. Nxd4 exd4 21. Bxd4 Bxh3 22. Bxf6 Bxg2 23. Kxg2 Bxf6 {½-½ (51) Franciskovic,B (2240)-Foisor,C (2364) Plovdiv 2008}) 17. a4 {[%emt 0:03:06] Inhibits b5.} a5 {[%emt 0:05:19]} 18. Qc2 {[%emt 0:03:39]} b6 {[%emt 0:02:26]} 19. Rad1 {[%emt 0:01:04]} Nd7 {[%emt 0:00:06]} 20. f4 {[%emt 0:01:59]} Bb7 {[%emt 0:00:14]} 21. Nb5 {[%emt 0:01:56]} Bc6 {[%emt 0:01:16]} 22. Ned4 {[%emt 0:01:32]} (22. Rd2 $16) 22... Nxd4 $14 {[%emt 0:00:18]} 23. Nxd4 {[%emt 0:00:15]} Bxd4 {[%emt 0:07:30]} 24. Rxd4 {[%emt 0:01:59]} Qc7 {[%emt 0:00:11]} 25. Rd2 {[%emt 0:02:00]} Nc5 {[%emt 0:00:45]} 26. f5 {[%emt 0:00:53]} e5 {[%emt 0:18:49]} (26... f6 $14) 27. Bh6 $1 $18 {[%emt 0:20:26]} Rfe8 {[%emt 0:03:33] [#]} 28. Re2 {[%emt 0:00:17]} (28. Rdf2 $1 $18 {is the precise move to win.}) 28... Rb7 {[%emt 0:03:47]} 29. Qc3 {[%emt 0:01:19]} Qd8 {[%emt 0:00:55]} 30. f6 {[%emt 0:02:00]} Re6 {[%emt 0:00:50]} (30... Bd7 $16 31. Kh2 Rb8) 31. Bg7 {[%emt 0:04:39] A strong pair of Bishops.} Rc7 {[%emt 0:03:53]} (31... Qc8 $142 32. Qe3 Rc7) 32. Qe3 {[%emt 0:00:41]} Nd7 $2 {[%emt 0:01:11]} (32... Re8 33. Qh6 Qc8) 33. Ref2 {[%emt 0:00:33]} Qa8 {[%emt 0:02:14]} 34. Qh6 {[%emt 0:00:52] h4 is the strong threat.} Nc5 {[%emt 0:00:04]} 35. Rf4 {[%emt 0:02:58]} exf4 $11 {[%emt 0:00:21]} 36. Rxf4 $2 {[%emt 0:00:08][%mdl 8192] [#]} (36. Bh8 $1 $11 Qf8 37. Bg7) 36... Re5 $1 $19 {[%emt 0:02:29] aiming for ...Rh5. Black is clearly winning.} 37. Bf3 {[%emt 0:13:52] Against Rh5} g5 {[%emt 0:04:06] Prevents Rh4.} 38. Rg4 {[%emt 0:01:24]} Bxe4 {[%emt 0:04:34]} 39. Bh8 {[%emt 0:02:13]} Ne6 {[%emt 0:01:39]} 40. Bxe4 {[%emt 0:00:21]} Rxe4 {Quite a comeback for Black.  Weighted Error Value: White=0.85/Black=0.34} 0-1

[Event "93rd German Championship 2022"]
[Site "Magdeburg"]
[Date "2022.08.16"]
[Round "4.16"]
[White "Yi, Danny"]
[Black "Colbow, Collin"]
[Result "1/2-1/2"]
[ECO "B45"]
[WhiteElo "2273"]
[BlackElo "2323"]
[Annotator "TA"]
[PlyCount "65"]
[EventDate "2022.08.14"]
[EventType "swiss"]
[EventCountry "GER"]
[SourceTitle "playchess.com"]
[Source "ChessBase"]
[SourceQuality "1"]
[TimeControl "40/5400+30:1800+30"]

{[%evp 18,65,40,29,35,0,0,0,27,18,26,26,47,27,47,46,61,54,72,56,58,37,39,9,22,0,0,7,8,0,0,0,0,0,0,0,0,0,0,-5,0,0,0,0,0,0,0,0,0,0]} 1. e4 {[%emt 0:00:03]} c5 {[%emt 0:03:37]} 2. Ne2 {[%emt 0:00:15]} Nc6 {[%emt 0:00:43]} 3. Nbc3 {[%emt 0:00:15]} e6 {[%emt 0:00:30]} 4. d4 {[%emt 0:04:09]} cxd4 {[%emt 0:00:03]} 5. Nxd4 {[%emt 0:00:04]} Nf6 {[%emt 0:00:06]} 6. Ndb5 {[%emt 0:01:32]} Bb4 {[%emt 0:00:52]} 7. a3 {[%emt 0:08:53]} Bxc3+ {[%emt 0:00:18]} 8. Nxc3 {[%emt 0:00:06][%cal Bb5c3,Bc3e2,Be2g3][%mdl 32]} d5 {[%emt 0:00:05]} 9. exd5 {[%emt 0:02:13]} exd5 {[%emt 0:00:19]} 10. Bd3 {[%emt 0:05:38]} O-O {[%emt 0:00:49] B45: Sicilian Four Knights.} 11. h3 {[%emt 0:02:28] [#] Inhibits Bg4. Active counter play!} Re8+ $146 {[%emt 0:04:36]} ({Predecessor:} 11... d4 12. Ne2 Qa5+ 13. Bd2 Qb6 14. O-O Re8 15. Bg5 Ne4 16. Bxe4 Rxe4 17. Qd3 Re5 18. Qd2 {0-1 (28) Cop,T (2214)-Nagrajsalovic,M (2278) Zagreb 2005}) 12. Ne2 $1 {[%emt 0:01:14]} Ne5 {[%emt 0:11:43]} 13. O-O {[%emt 0:01:59]} Qb6 {[%emt 0:01:09]} 14. Be3 {[%emt 0:09:50]} Qd6 {[%emt 0:04:02]} (14... Qxb2 $2 15. Bd4 Nxd3 16. Qxd3 $18) 15. Ng3 {[%emt 0:02:28]} Bd7 {[%emt 0:08:11]} 16. Re1 {[%emt 0:03:31]} Qc6 {[%emt 0:07:59][%cal Od7h3]} 17. Bd4 {[%emt 0:03:41]} Nxd3 {[%emt 0:00:45]} 18. Qxd3 {[%emt 0:00:47]} Ne4 {[%emt 0:06:05]} 19. Rad1 {[%emt 0:03:59][%cal Od4g7]} (19. Nh5 $5 {[%cal Rh5g7]} f6 20. f3 $14) 19... f6 {[%emt 0:14:34]} 20. Re3 {[%emt 0:11:37]} a6 {[%emt 0:09:08] The position is equal.} 21. Bc3 {[%emt 0:10:51]} Nxc3 {[%emt 0:03:35]} 22. Qxc3 {[%emt 0:02:58]} Rxe3 {[%emt 0:00:12]} 23. Qxe3 {[%emt 0:00:47]} Qxc2 {[%emt 0:02:40]} 24. Rxd5 {[%emt 0:01:54]} Bc6 {[%emt 0:02:12]} 25. Rd2 {[%emt 0:06:55]} Qc1+ {[%emt 0:02:13]} 26. Kh2 {[%emt 0:01:54][%cal Od2d8] [#] Hoping for Rd8+!} Re8 {[%emt 0:00:26] Prevents Rd8.} 27. Qd4 {[%emt 0:01:37]} Qe1 {[%emt 0:02:16]} 28. f4 {[%emt 0:02:00]} Qe3 {[%emt 0:02:30]} (28... g6 {feels hotter.} 29. Qc4+ Kf8 30. Rd6 Kg7) 29. Qd6 {[%emt 0:00:55]} Qe7 {[%emt 0:02:02]} 30. Qd4 {[%emt 0:00:58]} Qe3 {[%emt 0:01:12]} 31. Qd6 {[%emt 0:00:53]} Qe7 {[%emt 0:00:05]} 32. Qd4 {[%emt 0:00:09]} Qe3 {[%emt 0:00:05]} 33. Qd6 {Weighted Error Value: White=0.07 (flawless) /Black=0.04 (flawless)} 1/2-1/2

[Event "93rd German Championship 2022"]
[Site "Magdeburg"]
[Date "2022.08.16"]
[Round "4.17"]
[White "Stricker, Florian"]
[Black "Hourigan, Gerrit"]
[Result "1/2-1/2"]
[ECO "B23"]
[WhiteElo "2182"]
[BlackElo "2306"]
[Annotator "TA"]
[PlyCount "107"]
[EventDate "2022.08.14"]
[EventType "swiss"]
[EventCountry "GER"]
[SourceTitle "playchess.com"]
[Source "ChessBase"]
[SourceQuality "1"]
[TimeControl "40/5400+30:1800+30"]

{[%evp 9,107,38,52,53,49,31,34,11,43,33,40,42,42,49,69,16,12,14,12,0,0,-30,-33,-59,-54,-52,-29,-49,-14,-117,-120,-118,-124,-184,-197,-344,-343,-372,-302,-291,-291,-373,-350,-370,-326,-420,-400,-399,-381,-533,-516,-575,-493,-470,-275,-277,-199,-199,-134,-134,-134,-134,-134,-134,-134,-159,-151,-147,-134,-131,-131,-112,-29,-29,-29,-29,-13,-13,-12,-13,-12,-12,-12,-12,-12,-17,-12,-12,-5,-5,-1,-2,0,-7,-6,-8,0,0,0,-8]} 1. e4 {[%emt 0:00:04]} c5 {[%emt 0:02:07]} 2. Nc3 {[%emt 0:00:14]} a6 {[%emt 0:00:19]} 3. Nge2 {[%emt 0:00:15]} Nf6 {[%emt 0:03:38]} 4. g3 {[%emt 0:00:13]} d5 {[%emt 0:05:17]} 5. exd5 {[%emt 0:01:06]} Nxd5 {[%emt 0:00:35]} 6. Bg2 {[%emt 0:00:14] B23: Closed Sicilian: Lines without g3.} Nxc3 {[%emt 0:00:56]} 7. bxc3 {[%emt 0:00:05]} (7. dxc3 Qxd1+ 8. Kxd1 Nc6 $11) 7... e6 {[%emt 0:05:47]} 8. O-O {[%emt 0:00:18] [#] White is slightly better.} Be7 $146 {[%emt 0:01:56]} ({Predecessor:} 8... Bd6 9. d4 Nd7 10. Bf4 Bxf4 11. Nxf4 O-O 12. Re1 Rb8 13. a4 b5 14. axb5 axb5 15. dxc5 Nxc5 {½-½ (15) Sosa,T (2520)-Verstraeten,R (2365) El Prat de Llobregat 2019}) 9. d4 {[%emt 0:10:26]} Nc6 {[%emt 0:07:05]} 10. Be3 {[%emt 0:03:58]} cxd4 {[%emt 0:01:27]} 11. cxd4 {[%emt 0:00:06]} O-O {[%emt 0:05:35]} 12. c3 {[%emt 0:05:37]} (12. c4 $14) 12... Na5 $11 {[%emt 0:10:06]} 13. Qd3 {[%emt 0:11:05]} Bd7 {[%emt 0:08:02]} 14. Be4 {[%emt 0:31:30]} h6 {[%emt 0:08:44]} 15. Rfe1 {[%emt 0:21:32]} Rc8 {[%emt 0:01:43]} 16. Rab1 {[%emt 0:01:13]} b5 {[%emt 0:01:43]} 17. Nf4 {[%emt 0:05:37]} Qc7 18. a4 {[%emt 0:00:30]} Rfd8 {[%emt 0:07:12]} ({Don't do} 18... Qxc3 19. Qxc3 Rxc3 20. Bd2 $16) ({Of course not} 18... bxa4 19. d5 Nb3 20. dxe6 Bxe6 21. Qxa6 $11 (21. Nxe6 fxe6 22. Bf4 Nc5 $15)) 19. Rec1 {[%emt 0:03:13]} (19. Bh7+ $11 Kh8 20. Bg6 (20. axb5 Bxb5 21. Qc2 Qxc3 $17)) 19... Nc4 $17 {[%emt 0:04:21]} 20. axb5 {[%emt 0:01:24]} Bxb5 {[%emt 0:00:17]} 21. Rxb5 {[%emt 0:01:05]} axb5 $19 22. Rb1 {[%emt 0:00:09]} (22. h4 $142) 22... Nxe3 {[%emt 0:01:45]} 23. Qxe3 {[%emt 0:00:30]} Qxc3 24. Qxc3 Rxc3 {[%emt 0:01:17]} 25. d5 {[%emt 0:01:21]} e5 {[%emt 0:04:19]} 26. Nd3 {[%emt 0:00:08]} b4 {[%emt 0:06:05]} 27. Nxe5 {[%emt 0:00:10]} Bd6 {[%emt 0:02:00] [#] And now ...Re8 would win.} 28. Nc6 {[%emt 0:00:23]} Re8 {[%emt 0:00:40]} 29. f3 {[%emt 0:00:26]} Ra8 {[%emt 0:00:35]} 30. Kg2 {[%emt 0:00:39]} Ra2+ {[%emt 0:00:45]} 31. Kh3 {[%emt 0:00:04]} Ra4 {[%emt 0:05:59]} (31... Rd2 $142 32. Na5 g6) 32. Nd4 {[%emt 0:00:29]} Ra5 {[%emt 0:01:02] Inhibits Nb5. Hoping for ...g6.} 33. Nf5 {[%emt 0:00:11]} Ra6 {[%emt 0:01:44]} (33... Bf8 $19 {Threatens to win with ...g6.} 34. d6 Ra7) 34. Nxd6 $17 {[%emt 0:00:32]} Rxd6 {[%emt 0:00:01]} 35. Rxb4 {[%emt 0:00:05][%mdl 4096] Endgame White threatens Rb8+ and mate. KRR-KRB} g6 {[%emt 0:00:17]} 36. Rb8+ {[%emt 0:00:57]} Kg7 {[%emt 0:02:02]} 37. Rb7 Kf8 {...f5 is the strong threat.} 38. g4 {[%emt 0:02:01] Inhibits f5.} Ra3 {[%emt 0:02:48]} 39. Kg3 {[%emt 0:00:12]} Kg7 {[%emt 0:00:56]} 40. h4 {[%emt 0:01:00] [#]} Kf6 {[%emt 0:00:42]} (40... g5 $1 $17 41. h5 Kf6) 41. g5+ $1 $11 {[%emt 0:30:32]} hxg5 {[%emt 0:03:52]} 42. hxg5+ {[%emt 0:00:00]} Kxg5 {[%emt 0:01:01] Strongly threatening ...f5.} 43. Rxf7 {[%emt 0:00:00] The position is equal.} Rb6 {[%emt 0:02:06]} 44. Rc7 {[%emt 0:00:00]} Rb4 {[%emt 0:02:01]} 45. Re7 {[%emt 0:00:00]} Ra6 {[%emt 0:00:42]} 46. Re5+ {[%emt 0:00:00]} Kf6 {[%emt 0:06:51]} 47. Kf4 {[%emt 0:00:00]} Rb7 {[%emt 0:00:33]} 48. Re8 {[%emt 0:00:00]} Rh7 {[%emt 0:05:06]} 49. Rf8+ {[%emt 0:00:00]} Kg7 {[%emt 0:00:24]} 50. Rc8 {[%emt 0:00:00]} Kf6 {[%emt 0:00:24]} 51. Rg8 {[%emt 0:00:00]} Rh6 {[%emt 0:00:58]} 52. Kg4 {[%emt 0:00:00]} Ke5 {[%emt 0:01:53]} 53. Re8+ {[%emt 0:00:00]} Kf6 {[%emt 0:00:14]} 54. Rf8+ {[%emt 0:00:00] White happily takes the draw.  Weighted Error Value: White=0.23 (precise) /Black=0.20 (precise)} 1/2-1/2